[Event "*** MasterClass Titled Tuesday Blitz"]
[Site "Chess.com"]
[Date "2017.12.12"]
[Round "6"]
[White "Alliswell998"]
[Black "BartoszSocko"]
[Result "0-1"]
[WhiteElo "2345"]
[BlackElo "2546"]
[TimeControl "180+2"]
[EndTime "14:23:25 PST"]
[Termination "BartoszSocko won by checkmate"]

1. e4 {[%clk 0:03:01.9]} 1... e6 {[%clk 0:03:00.8]} 2. d4 {[%clk 0:03:02.4]}
2... d5 {[%clk 0:03:01.9]} 3. Nc3 {[%clk 0:03:04]} 3... Bb4 {[%clk 0:03:02.4]}
4. exd5 {[%clk 0:03:05.3]} 4... exd5 {[%clk 0:03:03.2]} 5. Bd3 {[%clk
0:03:06.6]} 5... Nc6 {[%clk 0:03:04.1]} 6. a3 {[%clk 0:03:08.2]} 6... Bxc3+
{[%clk 0:03:04.7]} 7. bxc3 {[%clk 0:03:10.1]} 7... Nge7 {[%clk 0:03:05.5]} 8.
Qh5 {[%clk 0:03:10.7]} 8... Be6 {[%clk 0:03:05.5]} 9. Ne2 {[%clk 0:03:07.9]}
9... Qd7 {[%clk 0:03:06.5]} 10. O-O {[%clk 0:03:06.8]} 10... O-O-O {[%clk
0:03:00.7]} 11. Nf4 {[%clk 0:02:53]} 11... g6 {[%clk 0:03:01.9]} 12. Qg5 {[%clk
0:02:47.8]} 12... Bf5 {[%clk 0:02:58.6]} 13. Re1 {[%clk 0:02:41.7]} 13... Rhe8
{[%clk 0:02:48.1]} 14. a4 {[%clk 0:02:37.4]} 14... h6 {[%clk 0:02:36.9]} 15. Qg3
{[%clk 0:02:31.3]} 15... Bxd3 {[%clk 0:02:36.8]} 16. Nxd3 {[%clk 0:02:30.3]}
16... Nf5 {[%clk 0:02:37.9]} 17. Qf3 {[%clk 0:02:17.9]} 17... Rxe1+ {[%clk
0:02:37.2]} 18. Nxe1 {[%clk 0:02:19.8]} 18... Na5 {[%clk 0:02:30.9]} 19. Nd3
{[%clk 0:02:17.6]} 19... Nc4 {[%clk 0:02:32.1]} 20. Nc5 {[%clk 0:02:15.7]} 20...
Qe7 {[%clk 0:02:28.4]} 21. Bf4 {[%clk 0:02:12.5]} 21... b6 {[%clk 0:02:11.6]}
22. Na6 {[%clk 0:02:04.2]} 22... Rd7 {[%clk 0:02:12.5]} 23. Nb4 {[%clk
0:02:03.3]} 23... Qe6 {[%clk 0:02:07.6]} 24. h3 {[%clk 0:01:55.9]} 24... a5
{[%clk 0:02:05.1]} 25. Nd3 {[%clk 0:01:55.2]} 25... Qe4 {[%clk 0:01:59.9]} 26.
Qg4 {[%clk 0:01:41.1]} 26... h5 {[%clk 0:01:51]} 27. Qg5 {[%clk 0:01:40.2]}
27... Qe7 {[%clk 0:01:52]} 28. Re1 {[%clk 0:01:31.7]} 28... Qxg5 {[%clk
0:01:52.3]} 29. Bxg5 {[%clk 0:01:33.6]} 29... Kb7 {[%clk 0:01:45.4]} 30. Re8
{[%clk 0:01:25]} 30... Nfd6 {[%clk 0:01:43.7]} 31. Rf8 {[%clk 0:01:15.8]} 31...
Ne4 {[%clk 0:01:44.7]} 32. Bd8 {[%clk 0:00:57.6]} 32... Nxc3 {[%clk 0:01:43]}
33. f4 {[%clk 0:00:47.2]} 33... Ne2+ {[%clk 0:01:44.1]} 34. Kf2 {[%clk
0:00:47.8]} 34... Nxd4 {[%clk 0:01:46]} 35. g4 {[%clk 0:00:45.3]} 35... hxg4
{[%clk 0:01:44.6]} 36. hxg4 {[%clk 0:00:47.2]} 36... Ne6 {[%clk 0:01:45.8]} 37.
Ne5 {[%clk 0:00:45.3]} 37... Nxf8 {[%clk 0:01:46.2]} 38. Nxd7 {[%clk 0:00:45.8]}
38... Nxd7 {[%clk 0:01:48.1]} 39. Be7 {[%clk 0:00:47]} 39... Nb2 {[%clk
0:01:45.5]} 40. Ke3 {[%clk 0:00:48.9]} 40... Nxa4 {[%clk 0:01:46.8]} 41. Kd4
{[%clk 0:00:50.8]} 41... c6 {[%clk 0:01:37.9]} 42. c4 {[%clk 0:00:50.2]} 42...
dxc4 {[%clk 0:01:36.5]} 43. Kxc4 {[%clk 0:00:52.1]} 43... Nac5 {[%clk 0:01:37]}
44. f5 {[%clk 0:00:52.2]} 44... Ne5+ {[%clk 0:01:35.2]} 45. Kd4 {[%clk
0:00:52.2]} 45... Nxg4 {[%clk 0:01:37.1]} 46. fxg6 {[%clk 0:00:51.3]} 46... fxg6
{[%clk 0:01:39]} 47. Bg5 {[%clk 0:00:51]} 47... Ne6+ {[%clk 0:01:36.4]} 48. Kc4
{[%clk 0:00:51.7]} 48... Nxg5 {[%clk 0:01:38.3]} 49. Kb3 {[%clk 0:00:52.7]}
49... b5 {[%clk 0:01:38.9]} 50. Ka3 {[%clk 0:00:53.9]} 50... c5 {[%clk
0:01:40.2]} 51. Kb3 {[%clk 0:00:55]} 51... a4+ {[%clk 0:01:41.5]} 52. Ka3 {[%clk
0:00:56.1]} 52... Kb6 {[%clk 0:01:42.7]} 53. Ka2 {[%clk 0:00:58]} 53... b4
{[%clk 0:01:43.8]} 54. Kb2 {[%clk 0:00:59.9]} 54... c4 {[%clk 0:01:45.2]} 55.
Ka2 {[%clk 0:01:01.6]} 55... a3 {[%clk 0:01:46.1]} 56. Kb1 {[%clk 0:01:02.6]}
56... b3 {[%clk 0:01:47.3]} 57. Ka1 {[%clk 0:01:04.5]} 57... c3 {[%clk
0:01:48.6]} 58. Kb1 {[%clk 0:01:06.4]} 58... Ne3 {[%clk 0:01:48.2]} 59. Ka1
{[%clk 0:01:07.7]} 59... Ne4 {[%clk 0:01:48.8]} 60. Kb1 {[%clk 0:01:08.4]} 60...
g5 {[%clk 0:01:47.3]} 61. Ka1 {[%clk 0:01:09.3]} 61... g4 {[%clk 0:01:48.9]} 62.
Kb1 {[%clk 0:01:10.9]} 62... g3 {[%clk 0:01:50.5]} 63. Kc1 {[%clk 0:01:12.8]}
63... g2 {[%clk 0:01:50.3]} 64. Kb1 {[%clk 0:01:14.7]} 64... g1=Q# {[%clk
0:01:51.6]} 0-1

[Event "*** MasterClass Titled Tuesday Blitz"]
[Site "Chess.com"]
[Date "2017.12.12"]
[Round "6"]
[White "DrVelja"]
[Black "lukas_111111"]
[Result "1-0"]
[WhiteElo "2548"]
[BlackElo "2449"]
[TimeControl "180+2"]
[EndTime "14:23:34 PST"]
[Termination "DrVelja won by resignation"]

1. e4 {[%clk 0:03:01.9]} 1... e6 {[%clk 0:02:56.4]} 2. d4 {[%clk 0:03:00.1]}
2... d5 {[%clk 0:02:56.4]} 3. Nc3 {[%clk 0:03:01.7]} 3... Bb4 {[%clk 0:02:56.5]}
4. Ne2 {[%clk 0:03:02.2]} 4... Nc6 {[%clk 0:02:53.5]} 5. a3 {[%clk 0:03:01.8]}
5... Bxc3+ {[%clk 0:02:54.1]} 6. Nxc3 {[%clk 0:03:03.7]} 6... dxe4 {[%clk
0:02:54.1]} 7. d5 {[%clk 0:03:05.6]} 7... exd5 {[%clk 0:02:54.6]} 8. Qxd5 {[%clk
0:03:07.5]} 8... Be6 {[%clk 0:02:52.4]} 9. Qxe4 {[%clk 0:03:08.4]} 9... Nf6
{[%clk 0:02:52.6]} 10. Qh4 {[%clk 0:03:09.9]} 10... O-O {[%clk 0:02:42.5]} 11.
Bg5 {[%clk 0:03:09.7]} 11... Re8 {[%clk 0:02:35.4]} 12. Be2 {[%clk 0:03:02.2]}
12... Nd4 {[%clk 0:02:29.9]} 13. O-O-O {[%clk 0:02:58.6]} 13... Nxe2+ {[%clk
0:02:26.8]} 14. Nxe2 {[%clk 0:02:59.9]} 14... Qe7 {[%clk 0:02:26.1]} 15. Nc3
{[%clk 0:02:30.4]} 15... h6 {[%clk 0:02:02.4]} 16. Bxf6 {[%clk 0:02:31]} 16...
Qxf6 {[%clk 0:02:03.8]} 17. Qxf6 {[%clk 0:02:32.6]} 17... gxf6 {[%clk
0:02:05.3]} 18. Rhe1 {[%clk 0:02:25.6]} 18... Kg7 {[%clk 0:02:05.4]} 19. Rd3
{[%clk 0:02:20.9]} 19... Bf5 {[%clk 0:02:04.3]} 20. Rg3+ {[%clk 0:02:19.6]}
20... Bg6 {[%clk 0:02:02.5]} 21. Rge3 {[%clk 0:02:15.7]} 21... Rxe3 {[%clk
0:01:52.9]} 22. Rxe3 {[%clk 0:02:16.2]} 22... c6 {[%clk 0:01:24]} 23. Re7 {[%clk
0:02:14.8]} 23... Rb8 {[%clk 0:01:25.2]} 24. Na4 {[%clk 0:02:03.8]} 24... Kf8
{[%clk 0:01:21.2]} 25. Rc7 {[%clk 0:02:04.5]} 25... Bf5 {[%clk 0:01:07.4]} 26.
Nc5 {[%clk 0:01:57.9]} 26... Bc8 {[%clk 0:01:08.2]} 27. Ne4 {[%clk 0:01:53.5]}
27... b6 {[%clk 0:00:51.2]} 28. Nxf6 {[%clk 0:01:50.3]} 28... Kg7 {[%clk
0:00:51.4]} 29. Ne8+ {[%clk 0:01:46.7]} 29... Kf8 {[%clk 0:00:47.3]} 30. Nd6
{[%clk 0:01:42.8]} 30... Be6 {[%clk 0:00:45.1]} 31. Rxc6 {[%clk 0:01:43.3]}
31... Bd5 {[%clk 0:00:45.3]} 32. Rc7 {[%clk 0:01:42.6]} 32... Bxg2 {[%clk
0:00:41.1]} 33. Rxf7+ {[%clk 0:01:41.1]} 33... Kg8 {[%clk 0:00:41.4]} 34. Rxa7
{[%clk 0:01:39.6]} 34... Rd8 {[%clk 0:00:41.2]} 35. Nf5 {[%clk 0:01:39.5]} 35...
Be4 {[%clk 0:00:34.6]} 36. Nxh6+ {[%clk 0:01:39]} 36... Kf8 {[%clk 0:00:35.9]}
37. f3 {[%clk 0:01:31.3]} 37... Bg6 {[%clk 0:00:34]} 38. Ng4 {[%clk 0:01:27.6]}
38... Re8 {[%clk 0:00:34.5]} 39. Rc7 {[%clk 0:01:19.3]} 39... Re2 {[%clk
0:00:33.5]} 40. b4 {[%clk 0:01:16.3]} 40... Ke8 {[%clk 0:00:33.3]} 41. a4 {[%clk
0:01:16.3]} 41... Kd8 {[%clk 0:00:33.8]} 42. Rc3 {[%clk 0:01:17.9]} 42... Re1+
{[%clk 0:00:28.9]} 43. Kb2 {[%clk 0:01:18.9]} 43... Rd1 {[%clk 0:00:29.9]} 44.
Ne5 {[%clk 0:01:18.3]} 44... Bf5 {[%clk 0:00:29.1]} 45. Nc4 {[%clk 0:01:10.2]}
1-0

[Event "*** MasterClass Titled Tuesday Blitz"]
[Site "Chess.com"]
[Date "2017.12.12"]
[Round "6"]
[White "GMHess"]
[Black "aspired"]
[Result "0-1"]
[WhiteElo "2573"]
[BlackElo "2535"]
[TimeControl "180+2"]
[EndTime "14:23:35 PST"]
[Termination "aspired won on time"]

1. d4 {[%clk 0:03:01.2]} 1... d5 {[%clk 0:02:59.4]} 2. Nf3 {[%clk 0:02:58.1]}
2... Nf6 {[%clk 0:03:00]} 3. Bf4 {[%clk 0:02:58.9]} 3... e6 {[%clk 0:03:00]} 4.
e3 {[%clk 0:02:54.7]} 4... c5 {[%clk 0:03:00.9]} 5. c3 {[%clk 0:02:54.9]} 5...
Nc6 {[%clk 0:03:02.1]} 6. Nbd2 {[%clk 0:02:55.1]} 6... Be7 {[%clk 0:03:03.4]} 7.
Bd3 {[%clk 0:02:55.6]} 7... Nh5 {[%clk 0:03:03]} 8. Be5 {[%clk 0:02:45]} 8...
Nxe5 {[%clk 0:02:47.1]} 9. Nxe5 {[%clk 0:02:46.1]} 9... Nf6 {[%clk 0:02:45.3]}
10. Qa4+ {[%clk 0:02:30.5]} 10... Nd7 {[%clk 0:02:36.1]} 11. f4 {[%clk
0:02:21.4]} 11... f6 {[%clk 0:02:28.8]} 12. Nef3 {[%clk 0:01:43.5]} 12... O-O
{[%clk 0:02:14.4]} 13. g4 {[%clk 0:01:44.6]} 13... Rf7 {[%clk 0:01:32.9]} 14.
O-O-O {[%clk 0:01:37.6]} 14... c4 {[%clk 0:01:25.3]} 15. Bb1 {[%clk 0:01:33.6]}
15... b5 {[%clk 0:01:26]} 16. Qc2 {[%clk 0:01:15.5]} 16... Nf8 {[%clk
0:01:23.4]} 17. g5 {[%clk 0:01:15.9]} 17... a5 {[%clk 0:01:07.6]} 18. Rdg1
{[%clk 0:01:10.5]} 18... b4 {[%clk 0:01:07.6]} 19. gxf6 {[%clk 0:01:00.6]} 19...
Bxf6 {[%clk 0:01:09.5]} 20. Ng5 {[%clk 0:00:56.7]} 20... Bxg5 {[%clk 0:01:08]}
21. Rxg5 {[%clk 0:00:58.6]} 21... bxc3 {[%clk 0:01:03.9]} 22. Qxc3 {[%clk
0:00:56.6]} 22... Qb6 {[%clk 0:00:53.8]} 23. Rhg1 {[%clk 0:00:54.1]} 23... Qb4
{[%clk 0:00:49.8]} 24. Nf3 {[%clk 0:00:40.4]} 24... Qxc3+ {[%clk 0:00:41.9]} 25.
bxc3 {[%clk 0:00:42.3]} 25... Rb7 {[%clk 0:00:28]} 26. Ne5 {[%clk 0:00:37.2]}
26... a4 {[%clk 0:00:19.2]} 27. a3 {[%clk 0:00:05.9]} 27... Raa7 {[%clk
0:00:13.2]} 0-1

[Event "*** MasterClass Titled Tuesday Blitz"]
[Site "Chess.com"]
[Date "2017.12.12"]
[Round "6"]
[White "oogee"]
[Black "chesstatour"]
[Result "1-0"]
[WhiteElo "2154"]
[BlackElo "1984"]
[TimeControl "180+2"]
[EndTime "14:24:03 PST"]
[Termination "oogee won by resignation"]

1. d4 {[%clk 0:03:01.9]} 1... f5 {[%clk 0:02:59.9]} 2. g3 {[%clk 0:03:02.3]}
2... Nf6 {[%clk 0:03:01.5]} 3. Bg2 {[%clk 0:03:03.1]} 3... g6 {[%clk 0:03:02.2]}
4. Nf3 {[%clk 0:03:03.5]} 4... Bg7 {[%clk 0:03:03.9]} 5. O-O {[%clk 0:03:04.9]}
5... O-O {[%clk 0:03:05.4]} 6. b3 {[%clk 0:03:05.7]} 6... d6 {[%clk 0:03:05.8]}
7. Bb2 {[%clk 0:03:06.9]} 7... c6 {[%clk 0:03:07.4]} 8. c4 {[%clk 0:03:07.8]}
8... Na6 {[%clk 0:02:49.4]} 9. Nc3 {[%clk 0:03:03.3]} 9... Bd7 {[%clk
0:02:45.1]} 10. Rc1 {[%clk 0:03:01.1]} 10... Rb8 {[%clk 0:02:33.2]} 11. a3
{[%clk 0:02:58.4]} 11... Qe8 {[%clk 0:02:17.3]} 12. b4 {[%clk 0:02:40.6]} 12...
e5 {[%clk 0:01:44.9]} 13. b5 {[%clk 0:02:26.1]} 13... Nc7 {[%clk 0:01:36.4]} 14.
dxe5 {[%clk 0:02:25.3]} 14... dxe5 {[%clk 0:01:35.7]} 15. Qd6 {[%clk 0:02:25.6]}
15... e4 {[%clk 0:00:35]} 16. Qxc7 {[%clk 0:02:01.3]} 16... exf3 {[%clk
0:00:35.4]} 17. Bxf3 {[%clk 0:02:01.5]} 17... cxb5 {[%clk 0:00:25.6]} 18. cxb5
{[%clk 0:01:29.6]} 18... Bxb5 {[%clk 0:00:25.5]} 19. Bxb7 {[%clk 0:01:29.7]}
19... Rf7 {[%clk 0:00:19]} 20. Nxb5 {[%clk 0:01:00.5]} 20... Rxc7 {[%clk
0:00:17.5]} 21. Nxc7 {[%clk 0:01:01]} 21... Qxe2 {[%clk 0:00:16.3]} 22. Bxf6
{[%clk 0:00:56.3]} 22... Bxf6 {[%clk 0:00:15.2]} 23. Bd5+ {[%clk 0:00:50.5]}
23... Kg7 {[%clk 0:00:13.6]} 24. Ne6+ {[%clk 0:00:34.2]} 24... Kh6 {[%clk
0:00:13.5]} 25. Rc4 {[%clk 0:00:22.7]} 25... g5 {[%clk 0:00:13.5]} 26. Rc6
{[%clk 0:00:21.6]} 26... Rb6 {[%clk 0:00:12.4]} 27. Rfc1 {[%clk 0:00:14.6]}
27... Qd2 {[%clk 0:00:11.1]} 28. Nc7 {[%clk 0:00:12.6]} 28... Kg7 {[%clk
0:00:07]} 29. Ne8+ {[%clk 0:00:12.1]} 29... Kf8 {[%clk 0:00:07.5]} 30. Nxf6
{[%clk 0:00:12.1]} 30... Rxc6 {[%clk 0:00:08.1]} 31. Rxc6 {[%clk 0:00:12.4]}
31... Ke7 {[%clk 0:00:07.9]} 32. Re6+ {[%clk 0:00:11.4]} 32... Kd8 {[%clk
0:00:07.7]} 33. Rd6+ {[%clk 0:00:10.2]} 33... Kc7 {[%clk 0:00:07]} 34. Ne8+
{[%clk 0:00:10.1]} 34... Kc8 {[%clk 0:00:05.5]} 35. Be6+ {[%clk 0:00:08.6]}
35... Kb7 {[%clk 0:00:05.5]} 36. Rxd2 {[%clk 0:00:09]} 1-0

[Event "*** MasterClass Titled Tuesday Blitz"]
[Site "Chess.com"]
[Date "2017.12.12"]
[Round "6"]
[White "NateSolon"]
[Black "TheBigBoss04"]
[Result "1-0"]
[WhiteElo "2367"]
[BlackElo "2479"]
[TimeControl "180+2"]
[EndTime "14:24:07 PST"]
[Termination "NateSolon won on time"]

1. e4 {[%clk 0:03:01.9]} 1... g6 {[%clk 0:02:39]} 2. d4 {[%clk 0:03:01.8]} 2...
Bg7 {[%clk 0:02:39.7]} 3. Nc3 {[%clk 0:03:02.8]} 3... d6 {[%clk 0:02:40]} 4. f4
{[%clk 0:03:03.4]} 4... Nc6 {[%clk 0:02:35.6]} 5. Nf3 {[%clk 0:02:56.7]} 5...
Bg4 {[%clk 0:02:36]} 6. Be3 {[%clk 0:02:57.2]} 6... e5 {[%clk 0:02:36.5]} 7.
fxe5 {[%clk 0:02:56.6]} 7... dxe5 {[%clk 0:02:36.3]} 8. d5 {[%clk 0:02:57.2]}
8... Nd4 {[%clk 0:02:37.6]} 9. Be2 {[%clk 0:02:56]} 9... Bxf3 {[%clk 0:02:20.2]}
10. Bxf3 {[%clk 0:02:56.8]} 10... Ne7 {[%clk 0:02:20.9]} 11. Qd2 {[%clk
0:02:49.1]} 11... c6 {[%clk 0:02:10.2]} 12. dxc6 {[%clk 0:02:22.8]} 12... bxc6
{[%clk 0:01:43]} 13. O-O {[%clk 0:02:06.8]} 13... O-O {[%clk 0:01:36.9]} 14. Be2
{[%clk 0:02:04]} 14... Rb8 {[%clk 0:01:31.7]} 15. b3 {[%clk 0:01:54.8]} 15... f5
{[%clk 0:01:14.9]} 16. Bc4+ {[%clk 0:01:54]} 16... Kh8 {[%clk 0:01:15.6]} 17.
exf5 {[%clk 0:01:27.9]} 17... gxf5 {[%clk 0:01:15.6]} 18. Bg5 {[%clk 0:01:24.4]}
18... Qc7 {[%clk 0:01:06.1]} 19. Kh1 {[%clk 0:01:17.3]} 19... Rbd8 {[%clk
0:01:01.8]} 20. Qf2 {[%clk 0:01:10.5]} 20... e4 {[%clk 0:00:55.7]} 21. Rad1
{[%clk 0:01:02.6]} 21... Rd7 {[%clk 0:00:46.2]} 22. Ne2 {[%clk 0:00:58.9]} 22...
Nxc2 {[%clk 0:00:15.6]} 23. Rxd7 {[%clk 0:00:48]} 23... Qxd7 {[%clk 0:00:17.5]}
24. Ng3 {[%clk 0:00:48.8]} 24... Nd4 {[%clk 0:00:16.6]} 25. Nh5 {[%clk
0:00:49.9]} 25... Be5 {[%clk 0:00:15.4]} 26. Bh6 {[%clk 0:00:44.4]} 26... Rd8
{[%clk 0:00:11.7]} 27. Qg3 {[%clk 0:00:44.2]} 27... Ng6 {[%clk 0:00:09.9]} 28.
Qg5 {[%clk 0:00:37.2]} 28... Qe7 {[%clk 0:00:06.9]} 29. Qc1 {[%clk 0:00:32.6]}
29... c5 {[%clk 0:00:04.8]} 30. Bg5 {[%clk 0:00:33.4]} 30... Qd7 {[%clk
0:00:05.4]} 31. Bxd8 {[%clk 0:00:34.2]} 31... Qxd8 {[%clk 0:00:07.3]} 32. Qh6
{[%clk 0:00:34.7]} 32... Qf8 {[%clk 0:00:07.4]} 33. Qxf8+ {[%clk 0:00:31.6]}
33... Nxf8 {[%clk 0:00:09.3]} 34. g4 {[%clk 0:00:32.6]} 34... e3 {[%clk
0:00:07.5]} 35. gxf5 {[%clk 0:00:32.2]} 35... Nd7 {[%clk 0:00:06.6]} 36. Re1
{[%clk 0:00:31.4]} 36... Nc2 {[%clk 0:00:04.6]} 37. Re2 {[%clk 0:00:32.2]} 37...
Nb4 {[%clk 0:00:03.9]} 38. Rxe3 {[%clk 0:00:32]} 38... Nxa2 {[%clk 0:00:04.6]}
39. Bb5 {[%clk 0:00:27.2]} 1-0

[Event "*** MasterClass Titled Tuesday Blitz"]
[Site "Chess.com"]
[Date "2017.12.12"]
[Round "6"]
[White "gemarin"]
[Black "arna"]
[Result "0-1"]
[WhiteElo "1842"]
[BlackElo "2169"]
[TimeControl "180+2"]
[EndTime "14:24:25 PST"]
[Termination "arna won by resignation"]

1. d4 {[%clk 0:03:01.9]} 1... d5 {[%clk 0:02:56.1]} 2. c4 {[%clk 0:03:02.7]}
2... e6 {[%clk 0:02:56.1]} 3. Nc3 {[%clk 0:03:03.8]} 3... f5 {[%clk 0:02:54.5]}
4. g3 {[%clk 0:03:02.2]} 4... c6 {[%clk 0:02:54.2]} 5. b3 {[%clk 0:02:59.4]}
5... Nf6 {[%clk 0:02:41.5]} 6. Bg2 {[%clk 0:02:27.1]} 6... Bb4 {[%clk
0:02:38.5]} 7. Bd2 {[%clk 0:02:28.1]} 7... dxc4 {[%clk 0:02:26.6]} 8. e3 {[%clk
0:02:23.5]} 8... cxb3 {[%clk 0:02:17]} 9. Qxb3 {[%clk 0:02:24.2]} 9... Bd6
{[%clk 0:02:00.5]} 10. Nf3 {[%clk 0:02:23.2]} 10... Qb6 {[%clk 0:01:48.2]} 11.
O-O {[%clk 0:02:16.1]} 11... Qxb3 {[%clk 0:01:36.5]} 12. axb3 {[%clk 0:02:13.6]}
12... Nd5 {[%clk 0:01:29.8]} 13. Na4 {[%clk 0:02:06]} 13... b6 {[%clk
0:00:52.1]} 14. Ng5 {[%clk 0:02:01.5]} 14... Bc7 {[%clk 0:00:25.5]} 15. e4
{[%clk 0:01:47]} 15... fxe4 {[%clk 0:00:26.4]} 16. Bxe4 {[%clk 0:01:47.4]} 16...
h6 {[%clk 0:00:16.6]} 17. Bg6+ {[%clk 0:01:46.5]} 17... Ke7 {[%clk 0:00:17.7]}
18. Ne4 {[%clk 0:01:43.2]} 18... Bb7 {[%clk 0:00:08.6]} 19. Nac3 {[%clk
0:01:42]} 19... Kd7 {[%clk 0:00:07.4]} 20. Na4 {[%clk 0:01:36.7]} 20... Rf8
{[%clk 0:00:05.9]} 21. Nb2 {[%clk 0:01:33.6]} 21... Rf3 {[%clk 0:00:05.8]} 22.
b4 {[%clk 0:01:26.5]} 22... Na6 {[%clk 0:00:04.4]} 23. Nc4 {[%clk 0:01:19.8]}
23... Naxb4 {[%clk 0:00:03.6]} 24. Bf4 {[%clk 0:01:14.6]} 24... Nxf4 {[%clk
0:00:03]} 25. gxf4 {[%clk 0:01:15.2]} 25... Rxf4 {[%clk 0:00:03.8]} 26. Rfd1
{[%clk 0:01:08.8]} 26... Rg4+ {[%clk 0:00:04.3]} 27. Kf1 {[%clk 0:01:09.4]}
27... Rxg6 {[%clk 0:00:05.3]} 28. Ne5+ {[%clk 0:01:10.3]} 28... Bxe5 {[%clk
0:00:06.4]} 29. dxe5+ {[%clk 0:01:10.3]} 29... Nd5 {[%clk 0:00:07.7]} 30. Rac1
{[%clk 0:01:09.3]} 30... Rg4 {[%clk 0:00:06.7]} 31. Ng3 {[%clk 0:01:08.4]} 31...
Ba6+ {[%clk 0:00:07.5]} 32. Kg2 {[%clk 0:01:08.7]} 32... Rf8 {[%clk 0:00:06.9]}
33. h3 {[%clk 0:01:09.2]} 33... Ra4 {[%clk 0:00:06.8]} 34. Rd4 {[%clk
0:01:07.7]} 34... Rxd4 {[%clk 0:00:07.2]} 35. Ra1 {[%clk 0:01:07.9]} 35... Bb7
{[%clk 0:00:05.9]} 36. Rxa7 {[%clk 0:01:09.4]} 36... Kc7 {[%clk 0:00:06.9]} 37.
Ra2 {[%clk 0:01:09]} 37... Rdf4 {[%clk 0:00:07.2]} 38. Rb2 {[%clk 0:01:10.6]}
38... b5 {[%clk 0:00:07.9]} 39. Nh5 {[%clk 0:01:08.1]} 39... R4f5 {[%clk
0:00:07.5]} 40. Ng3 {[%clk 0:01:08.3]} 40... Rxe5 {[%clk 0:00:08.8]} 0-1

[Event "*** MasterClass Titled Tuesday Blitz"]
[Site "Chess.com"]
[Date "2017.12.12"]
[Round "6"]
[White "MFBerna"]
[Black "cheese111"]
[Result "0-1"]
[WhiteElo "2264"]
[BlackElo "2425"]
[TimeControl "180+2"]
[EndTime "14:24:25 PST"]
[Termination "cheese111 won by resignation"]

1. e4 {[%clk 0:03:01.9]} 1... e5 {[%clk 0:03:00.2]} 2. Nf3 {[%clk 0:03:02.7]}
2... Nc6 {[%clk 0:03:01.6]} 3. Bb5 {[%clk 0:03:03.2]} 3... a6 {[%clk 0:03:02.7]}
4. Ba4 {[%clk 0:03:04]} 4... Nf6 {[%clk 0:03:03.7]} 5. O-O {[%clk 0:03:04.7]}
5... b5 {[%clk 0:03:04.8]} 6. Bb3 {[%clk 0:03:05.1]} 6... Bc5 {[%clk 0:03:06.4]}
7. Re1 {[%clk 0:03:06.1]} 7... O-O {[%clk 0:03:03.9]} 8. c3 {[%clk 0:03:05.8]}
8... d6 {[%clk 0:03:04.5]} 9. h3 {[%clk 0:03:06]} 9... h6 {[%clk 0:02:44.6]} 10.
a4 {[%clk 0:03:03.4]} 10... Rb8 {[%clk 0:02:42.9]} 11. d4 {[%clk 0:03:02.2]}
11... Bb6 {[%clk 0:02:44]} 12. Na3 {[%clk 0:03:00.2]} 12... exd4 {[%clk
0:02:37]} 13. cxd4 {[%clk 0:03:00.5]} 13... Na5 {[%clk 0:02:37.9]} 14. axb5
{[%clk 0:02:53.3]} 14... axb5 {[%clk 0:02:37.7]} 15. Ba2 {[%clk 0:02:28.3]}
15... b4 {[%clk 0:02:33.4]} 16. Nc4 {[%clk 0:02:19.2]} 16... Nxc4 {[%clk
0:02:23.5]} 17. Bxc4 {[%clk 0:02:19.7]} 17... Bb7 {[%clk 0:02:25]} 18. Bd3
{[%clk 0:02:12.6]} 18... Re8 {[%clk 0:02:24.5]} 19. e5 {[%clk 0:02:01.9]} 19...
Bxf3 {[%clk 0:02:24.4]} 20. Qxf3 {[%clk 0:01:58.2]} 20... Bxd4 {[%clk
0:02:24.4]} 21. Bxh6 {[%clk 0:01:44.6]} 21... Rxe5 {[%clk 0:02:23.9]} 22. Rxe5
{[%clk 0:01:18.1]} 22... Bxe5 {[%clk 0:02:24.6]} 23. Bc1 {[%clk 0:01:16.5]}
23... Qe7 {[%clk 0:02:10.5]} 24. g3 {[%clk 0:00:55.9]} 24... c5 {[%clk
0:02:08.3]} 25. Ra6 {[%clk 0:00:40.4]} 25... d5 {[%clk 0:02:02.2]} 26. b3 {[%clk
0:00:32.4]} 26... Qc7 {[%clk 0:01:03.7]} 27. Bg5 {[%clk 0:00:24.8]} 27... c4
{[%clk 0:01:00.7]} 28. Bc2 {[%clk 0:00:19.1]} 28... cxb3 {[%clk 0:00:53.1]} 29.
Bxb3 {[%clk 0:00:21]} 29... Qc3 {[%clk 0:00:51.2]} 30. Kg2 {[%clk 0:00:07.4]}
30... Ne4 {[%clk 0:00:41.7]} 31. Be3 {[%clk 0:00:07.4]} 31... Qxb3 {[%clk
0:00:37.1]} 32. Ra7 {[%clk 0:00:08]} 32... Bf6 {[%clk 0:00:36.9]} 33. Qf4 {[%clk
0:00:06.9]} 33... Rf8 {[%clk 0:00:35.1]} 34. h4 {[%clk 0:00:06.3]} 34... Qc4
{[%clk 0:00:34.6]} 35. Qf5 {[%clk 0:00:05.3]} 35... b3 {[%clk 0:00:33.5]} 36.
Rb7 {[%clk 0:00:05.5]} 36... b2 {[%clk 0:00:33.3]} 37. h5 {[%clk 0:00:05.5]}
37... Qc6 {[%clk 0:00:33.2]} 38. Rb3 {[%clk 0:00:04.9]} 38... Qc2 {[%clk
0:00:27.4]} 39. Rb6 {[%clk 0:00:02]} 39... b1=Q {[%clk 0:00:27.5]} 40. Rxb1
{[%clk 0:00:03.9]} 40... Qxb1 {[%clk 0:00:28.4]} 41. f3 {[%clk 0:00:04.7]} 41...
Nd2 {[%clk 0:00:27.5]} 42. Qxd5 {[%clk 0:00:04.6]} 42... Qf1+ {[%clk 0:00:27.3]}
0-1